Cogmind - Beta 15 @@@ ROGUE MODE // 2025.05.16 @ 15:38:11 Player: Anting Result: Self-destructed Performance ------------- Evolutions (5) 2500 Regions Visited (15) 3000 Robots Destroyed (196) 980 Value Destroyed (6966) 6966 Prototype IDs (23) 460 Alien Tech Used (0) 0 Bonus (2399) 2399 TOTAL SCORE: 16305 Bonus ------- High Alert Combat Kills 1590 Follower Combat Kills 2231 Network Hubs Disabled 200 Built Enhanced Grunts 300 Met R17 at Cetus 500 Friendly Fire -2422 Cogmind --------- Core Integrity 133/1000 Matter 300/300 Energy 77/100 System Corruption 49% Temperature Cool (0) Movement Core (50) Location -5/Factory Parts ------- > --- POWER (2) -------- (None) > --- PROPULSION (4) --- (None) > --- UTILITY (9) ------ Advanced Terrain Scan Processor > --- WEAPON (2) ------- (None) > --- INVENTORY (5) ---- Advanced Heavy Treads Advanced Heavy Siege Treads Compact HERF Cannon Peak State ------------ > --- POWER ------------ Neutrino Core Antimatter Reactor > --- PROPULSION ------- Centrium Heavy Treads Centrium Heavy Treads > --- UTILITY ---------- Advanced Heat Sink High-capacity Storage Unit Advanced Quantum Shading Machine Spectral Analyzer Improved Signal Interpreter Advanced Targeting Computer Improved Weapon Cycler Centrium Medium Armor Plating Medium Regenerative Plating > --- WEAPON ----------- Plasma Cannon Phase Cannon > --- INVENTORY -------- Quantum Reactor Centrium Heavy Treads Coolant Injector Advanced Energy Well Advanced Energy Well Matter Compressor Advanced Terrain Scan Processor Armor Integrity Analyzer Centrium Medium Armor Plating Improved Hacking Suite Improved Hacking Suite Improved Hacking Suite Improved Hacking Suite Heavy Plasma Cannon Heavy Phase Cannon Neutron Cannon Precision Rocket Launcher Precision Rocket Launcher Improved Remote Datajack [Rating: 123] Favorites ----------- Power Heavy Ion Engine Engine Heavy Ion Engine Power Core Micro Nuclear Core Reactor Antimatter Reactor Propulsion Light Treads Treads Light Treads Leg Aluminum Leg Utility High-capacity Storage Unit Device Coolant Injector Storage High-capacity Storage Unit Processor Improved Signal Interpreter Hackware Hacking Suite Protection Hardened Medium Armor Plating Weapon Heavy EM Shotgun Energy Gun Heavy EM Shotgun Energy Cannon Heavy Particle Cannon Ballistic Gun Assault Rifle Ballistic Cannon Magnetic Acceleration Cannon Launcher Precision Rocket Launcher Slashing Weapon Power Sword Build | -11 -10 -10 -10 -9 -8 -8 -8 -6 -6 -6 -6 -6 -5 -5 -5 ------- Run | Yrd Mat Min Exi Min Mat Sto Rec Fac Ext Cet Arc Hub Fac Was Fac Slots Evolved 10 | . . . . . 4 . . 4 . . . . 2 . . Power 1 | . . . . . . . . 1 . . . . . . . Propulsion 2 | . . . . . 2 . . . . . . . . . . Utility 7 | . . . . . 2 . . 3 . . . . 2 . . Weapon . | . . . . . . . . . . . . . . . . Parts Attached 128 | 8 2 4 . 3 23 19 6 9 12 9 3 2 26 2 . Power 14 | 1 . 1 . . 2 . . 1 3 1 . 1 4 . . Engine 6 | 1 . 1 . . 1 . . . 2 . . 1 . . . Core 5 | . . . . . 1 . . 1 1 . . . 2 . . Reactor 3 | . . . . . . . . . . 1 . . 2 . . Propulsion 27 | 3 1 1 . . 7 6 1 3 2 2 . . 1 . . Treads 19 | 1 . . . . 3 6 1 3 2 2 . . 1 . . Leg 8 | 2 1 1 . . 4 . . . . . . . . . . Wheel . | . . . . . . . . . . . . . . . . Hover . | . . . . . . . . . . . . . . . . Flight . | . . . . . . . . . . . . . . . . Utility 47 | 2 1 1 . 1 5 3 2 5 3 5 1 1 15 2 . Device 18 | 1 . 1 . . 2 . 1 1 2 2 1 1 6 . . Storage 6 | 1 1 . . 1 . . . . . 1 . . 1 1 . Processor 5 | . . . . . . . . 2 . . . . 2 1 . Hackware 7 | . . . . . . . . 1 1 . . . 5 . . Protection 11 | . . . . . 3 3 1 1 . 2 . . 1 . . Artifact . | . . . . . . . . . . . . . . . . Weapon 40 | 2 . 1 . 2 9 10 3 . 4 1 2 . 6 . . Energy Gun 10 | . . . . . 4 5 1 . . . . . . . . Energy Cannon 17 | . . 1 . . 3 2 2 . 2 . 2 . 5 . . Ballistic Gun 5 | 2 . . . 1 2 . . . . . . . . . . Ballistic Cannon 2 | . . . . . . . . . 2 . . . . . . Launcher 5 | . . . . 1 . 3 . . . . . . 1 . . Special Weapon . | . . . . . . . . . . . . . . . . Impact Weapon . | . . . . . . . . . . . . . . . . Slashing Weapon 1 | . . . . . . . . . . 1 . . . . . Piercing Weapon . | . . . . . . . . . . . . . . . . Special Melee Weapon . | . . . . . . . . . . . . . . . . Unidentified Prototypes 17 | . . . . . 3 6 . . . 4 . . 4 . . Corrupted Parts 1 | . . . . . . . . . . . . . 1 . . System Corruption 5 | . . . . . . . . . . . . . 5 . . Parts Lost 51 | . . 2 . 1 . 2 . 8 4 . . . 32 2 . Power 8 | . . 1 . . . . . 2 . . . . 5 . . Propulsion 9 | . . . . . . . . 4 2 . . . 3 . . Utility 23 | . . 1 . . . 2 . 2 1 . . . 15 2 . Weapon 11 | . . . . 1 . . . . 1 . . . 9 . . Highest Loss Streak 26 | . . 2 . 1 . 1 . 6 2 . . . 26 1 . To Critical Strikes . | . . . . . . . . . . . . . . . . Average Backups 17 | 2 10 14 15 15 19 19 20 19 16 19 18 19 17 4 3 Power . | . 1 . . . . . . 1 . 1 1 1 . . . Propulsion 4 | 1 3 5 5 5 6 5 6 5 2 1 1 1 . . 2 Utility 6 | . . 3 4 4 6 7 7 6 6 7 9 12 10 2 . Weapon 6 | . 5 6 6 5 6 6 6 6 7 8 6 5 5 1 1 Tool/Special . | . . . . . . . . . . . . . . . . Unused Backups 27 | . 1 1 . 1 6 3 . 1 . 6 3 . 2 1 2 Power . | . . . . . . . . . . . . . . . . Propulsion 8 | . . 1 . . 2 1 . . . 3 . . . . 1 Utility 8 | . . . . . 1 . . 1 . 3 1 . 2 . . Weapon 10 | . 1 . . 1 3 2 . . . . 2 . . . 1 Tool/Special 1 | . . . . . . . . . . . . . . 1 . Average Slot Usage (%) 95 | . 100 100 100 100 97 99 100 97 97 89 85 86 82 9 5 Engine 8 | . 14 14 14 14 4 9 9 5 5 6 6 6 2 . . Core 2 | . . . . . 4 . . 5 5 3 . . 1 . . Treads 16 | . . . . . 7 35 36 25 25 16 13 13 9 . . Leg 9 | . 28 28 28 28 27 . . . . . . . . . . Device 13 | . 14 14 14 14 12 9 9 10 12 17 20 20 19 . . Storage 8 | . 14 14 14 14 9 9 9 6 6 6 6 6 5 . . Processor 5 | . . . . . . . . 8 13 13 13 13 11 3 5 Hackware 1 | . . . . . . . . 1 10 4 . . . 3 . Protection 7 | . . . . . 12 17 18 16 . 4 5 6 10 . . Energy Gun 3 | . . . . . 3 7 12 . 8 . . . . . . Energy Cannon 8 | . . 13 14 13 7 6 5 12 2 6 9 12 10 . . Ballistic Gun 5 | . 28 14 14 14 7 3 . . . . . . . . . Peak Build Rating 123 | 7 8 9 9 10 41 31 31 46 55 97 96 97 123 20 8 Average Rating 41 | 5 7 8 9 9 33 29 30 43 49 82 94 96 106 9 8 On Entrance 33 | . 7 8 9 9 10 28 31 31 32 55 95 96 97 16 8 Naked Turns 14 | . . . . . . . . . . . . . . 14 . Heaviest Build 116 | 14 29 29 29 49 67 77 77 87 75 94 97 97 116 13 . Greatest Support 160 | 20 20 20 20 20 80 80 80 80 80 160 160 160 160 3 3 Greatest Overweight (x) 4 | 1 1 1 1 2 2 1 . 1 . . . . . 4 . Average Overweight (x) . | . . 1 1 1 . . . . . . . . . . . Largest Inventory Capacity 20 | 8 15 15 15 20 20 20 20 20 20 20 20 20 20 5 5 Average Capacity 18 | 7 14 15 15 17 20 20 20 20 20 20 20 20 19 5 5 Most Carried 20 | 4 15 15 15 16 20 20 20 20 20 20 20 20 20 5 5 Average Carried 17 | 3 10 14 15 15 19 19 19 19 16 19 19 20 18 4 5 Final Capacity 20 | 8 15 15 15 20 20 20 20 20 20 20 20 20 5 5 5 Final Carried 20 | 4 15 15 15 16 20 20 20 16 20 20 20 20 5 5 5 Class Distribution -------------------- 63% | Mutant 18% | Scavenger-Mutant 14% | Commander-Mutant 3% | Hacker-Mutant Dominant Class ---------------- Mutant | -10/Materials Mutant | -10/Mines Mutant | -10/Exiles Mutant | -9/Mines Mutant | -8/Materials Mutant | -8/Storage Mutant | -8/Recycling Mutant | -6/Factory Commander-Mutant | -6/Extension Commander-Mutant | -6/Cetus Scavenger-Mutant | -6/Archives Scavenger-Mutant | -6/Hub_04(d) Scavenger-Mutant | -5/Factory Hacker-Mutant | -5/Waste Mutant | -5/Factory Resources | -11 -10 -10 -10 -9 -8 -8 -8 -6 -6 -6 -6 -6 -5 -5 -5 ----------- Run | Yrd Mat Min Exi Min Mat Sto Rec Fac Ext Cet Arc Hub Fac Was Fac Matter Collected 3737 | 228 205 316 . 75 229 723 157 108 394 115 90 125 972 . . Remotely . | . . . . . . . . . . . . . . . . Salvage Created 8430 | 15 355 290 . 80 618 1431 277 397 1178 75 205 535 2974 . . Parts 409 | 2 30 14 . 13 38 96 11 20 53 1 15 21 95 . . Haulers Intercepted 14 | . 1 . . . 2 6 . . . . . 2 3 . . Recyclers Shooed 15 | . 2 1 . 2 . 1 . . 2 . . . 7 . . Parts Field Recycled . | . . . . . . . . . . . . . . . . Retrieved Matter . | . . . . . . . . . . . . . . . . Parts Self-Destructed . | . . . . . . . . . . . . . . . . Prevented . | . . . . . . . . . . . . . . . . Kills | -11 -10 -10 -10 -9 -8 -8 -8 -6 -6 -6 -6 -6 -5 -5 -5 ------- Run | Yrd Mat Min Exi Min Mat Sto Rec Fac Ext Cet Arc Hub Fac Was Fac Combat Hostiles Destroyed 135 | . 9 4 . 5 11 24 6 7 17 . 1 7 44 . . Guns 35 | . 9 2 . 3 7 7 1 . 6 . . . . . . Cannons 54 | . . 2 . 2 3 10 5 7 4 . 1 3 17 . . AOE 32 | . . . . . . 7 . . 3 . . 4 18 . . Classes Destroyed 19 | 1 4 1 . 1 3 2 3 . . . . . 4 . . Worker 9 | . . . . . . 4 . 3 . . . 2 . . . Builder 7 | . . . . 1 . 1 . 1 1 . . 2 1 . . Tunneler 5 | 1 1 . . . . . . 1 1 . . . 1 . . Hauler 14 | . 1 . . . 2 6 . . . . . 2 3 . . Recycler 7 | . . 3 . . . . . . 1 . . . 3 . . Mechanic 2 | . . . . . . . . . . . . . 2 . . Operator 7 | . 1 . . . 1 1 . . . . 4 . . . . Watcher 5 | . . . . . . 2 . . 1 1 . 1 . . . Swarmer 28 | . 4 3 . 5 2 7 1 . 2 . . 4 . . . Grunt 45 | . 5 1 . . 3 8 . 3 8 . . 1 16 . . Brawler 4 | . . . . . . . 1 . . . . . 3 . . Duelist 6 | . . . . . 1 . 1 1 . . . . 3 . . Protector 3 | . . . . . . . . . . . . . 3 . . Sentry 23 | . . . . . 4 9 1 . 6 . 1 . 2 . . Demolisher 1 | . . . . . . . 1 . . . . . . . . Specialist 4 | . . . . . . . . . . . . . 4 . . Hunter 7 | . . . . . 1 . . . . . . 1 5 . . Programmer 12 | . . . . . . . 1 3 . . . 1 7 . . Heavy 1 | . . . . . . . . . . . . . 1 . . Enhanced Grunt 2 | . . . . . . . . . . . . . 2 . . Butcher 1 | . . . . . . . . . 1 . . . . . . Guerrilla 2 | . . . . . . . . . . . . 2 . . . Best Kill Streak 13 | 1 6 3 . 4 5 6 3 3 3 1 3 5 13 . . Combat Bots Only 11 | . 5 3 . 4 3 3 3 2 3 . 1 3 11 . . Max Kills in Single Turn 4 | 1 1 1 . 1 1 3 2 1 1 1 1 4 4 . . Gunslinging . | . . . . . . . . . . . . . . . . Exploded 4 | . . . . . . 3 . . 1 . . 3 4 . . Melee . | . . . . . . . . . . . . . . . . Uniques/NPCs Destroyed 1 | . . . . . . . . . . 1 . . . . . A7 (-6/Cetus) Combat | -11 -10 -10 -10 -9 -8 -8 -8 -6 -6 -6 -6 -6 -5 -5 -5 -------- Run | Yrd Mat Min Exi Min Mat Sto Rec Fac Ext Cet Arc Hub Fac Was Fac Hostile Shots Fired 981 | . 38 36 . 22 54 84 20 99 158 . 1 35 432 2 . Missed 253 | . 13 10 . 5 19 15 4 32 54 . . 9 92 . . Hits 728 | . 25 26 . 17 35 69 16 67 104 . 1 26 340 2 . Melee 20 | . . . . . . . . . . . . . 18 2 . Projectile 708 | . 25 26 . 17 35 69 16 67 104 . 1 26 322 . . Critical Strikes 27 | . . . . . . 3 1 3 1 2 . 1 15 1 . Damage Taken 12222 | . 270 308 . 180 426 1164 196 1222 1052 111 15 401 6799 78 . Core 1350 | . 70 73 . 48 43 80 . 35 110 24 . . 789 78 . Absorbed by Shields 940 | . . . . . . . 31 106 101 38 6 148 510 . . Reduced by Siege Mode 329 | . . . . . . . . . . . . . 329 . . Regen/Repaired (Parts) 1050 | . . . . . . 209 . . 180 16 55 56 531 3 . Core Remaining (%) 70 | 100 . . . 23 . . 77 . . . . 80 . . . Volleys Fired 469 | 3 32 25 . 13 44 69 13 36 52 5 3 19 155 . . Largest 2 | 2 2 2 . 2 2 2 2 2 2 1 2 2 2 . . Hottest 180 | 40 40 80 . 80 122 120 150 150 124 80 160 170 180 . . Shots Fired 859 | 6 64 50 . 22 84 130 27 62 87 5 6 31 285 . . Gun 303 | 6 64 36 . 9 58 64 5 . 61 . . . . . . Cannon 511 | . . 14 . 9 26 61 22 53 24 5 6 26 265 . . Launcher 45 | . . . . 4 . 5 . 9 2 . . 5 20 . . Special . | . . . . . . . . . . . . . . . . Kinetic 177 | 6 64 36 . 9 26 30 . . 6 . . . . . . Thermal 522 | . . 14 . 9 58 61 22 53 5 5 6 26 263 . . Explosive 42 | . . . . 4 . 2 . 9 2 . . 5 20 . . Electromagnetic 118 | . . . . . . 37 5 . 74 . . . 2 . . Robot Hit Streak 30 | 5 10 4 . 4 19 11 7 10 15 2 6 12 30 . . Robot Miss Streak 4 | . 3 4 . 3 4 4 2 4 4 1 . 4 4 . . Penetration Max 1 | . . . . . . 1 . . . . . . . . . Secondary Targets 4 | . 2 . . . 2 . . . . . . . . . . Max Gunslinging Chain 1 | . 1 . . . 1 . . . . . . . . . . Shots Hit Robots 589 | 5 43 28 . 8 51 76 15 29 72 14 11 13 224 . . Core Hits 356 | 1 23 10 . 6 21 56 8 16 48 8 6 20 133 . . Critical Kills 4 | . 1 . . . . . . . . . . . 3 . . Critical Parts Destroyed . | . . . . . . . . . . . . . . . . Critical Strikes 9 | . 1 . . . 2 . . . 2 1 . . 3 . . Burn 2 | . . . . . 2 . . . . . . . . . . Meltdown 3 | . . . . . . . . . . . . . 3 . . Destroy 1 | . 1 . . . . . . . . . . . . . . Blast 2 | . . . . . . . . . 2 . . . . . . Sever 1 | . . . . . . . . . . 1 . . . . . Melee Attacks 16 | . . . . . . . . . . 11 5 . . . . Impact . | . . . . . . . . . . . . . . . . Slashing 16 | . . . . . . . . . . 11 5 . . . . Piercing . | . . . . . . . . . . . . . . . . Sneak Attacks 15 | . . . . . . . . . . 11 4 . . . . Combat Hostiles . | . . . . . . . . . . . . . . . . Follow-up Attacks . | . . . . . . . . . . . . . . . . Damage Inflicted 22043 | 56 472 378 . 230 814 2492 491 1065 2253 710 612 1720 10750 . . Guns 3463 | 56 459 261 . 76 623 869 23 . 1096 . . . . . . Cannons 10032 | . . 106 . 36 191 905 460 878 522 104 153 407 6270 . . Explosions 7155 | . . . . 77 . 686 . 142 606 . . 1255 4389 . . Melee 1065 | . . . . . . . . . . 606 459 . . . . Ramming 328 | . 13 11 . 41 . 32 8 45 29 . . 58 91 . . Kinetic 1706 | 56 459 261 . 76 209 494 . . 151 . . . . . . Thermal 10567 | . . 106 . 36 605 1130 460 900 388 104 153 407 6278 . . Explosive 5949 | . . . . 77 . 313 . 120 296 . . 837 4306 . . Electromagnetic 2428 | . . . . . . 523 23 . 1389 . . 418 75 . . Impact . | . . . . . . . . . . . . . . . . Slashing 1065 | . . . . . . . . . . 606 459 . . . . Piercing . | . . . . . . . . . . . . . . . . Highest Corruption 49 | . . . . . . 1 1 3 3 3 3 . 43 49 49 Average Corruption 4 | . . . . . . 1 1 2 3 3 2 . 13 47 49 Corruption Purged 3 | . . . . . . . . . . . 3 . . . . Corruption Blocked . | . . . . . . . . . . . . . . . . Effects 116 | . . . . . . 8 8 10 25 7 2 . 48 7 1 Message Errors 22 | . . . . . . 1 1 3 8 2 . . 7 . . Matter Fused 29 | . . . . . . 3 4 1 5 3 1 . 11 1 . Heat Flow Errors 16 | . . . . . . 1 2 1 3 . . . 9 . . Energy Discharges 14 | . . . . . . 2 . 1 4 1 . . 4 1 1 Parts Rejected 1 | . . . . . . . . . . . . . 1 . . Parts Fused 1 | . . . . . . . . . . . . . 1 . . Data Loss (minor) 13 | . . . . . . 1 . 2 3 1 1 . 4 1 . Data Loss (major) 1 | . . . . . . . . 1 . . . . . . . Misfires 4 | . . . . . . . 1 . . . . . 3 . . Alerts 2 | . . . . . . . . 1 1 . . . . . . Misdirections 6 | . . . . . . . . . . . . . 2 4 . Weapon Failures 7 | . . . . . . . . . 1 . . . 6 . . Overload Shots . | . . . . . . . . . . . . . . . . Overflow Damage 454 | . . . . . . 12 26 19 30 1 128 82 156 . . Projectiles 147 | . . . . . . 12 26 19 7 1 . . 82 . . Explosions 174 | . . . . . . . . . 23 . . 77 74 . . Melee 133 | . . . . . . . . . . . 128 5 . . . Knockbacks 6 | . . . . 1 . . . . 2 . . 2 1 . . Impact 5 | . . . . 1 . . . . 1 . . 2 1 . . Kinetic 1 | . . . . . . . . . 1 . . . . . . Secondary . | . . . . . . . . . . . . . . . . Self-Inflicted Damage 763 | . . . . 38 . 182 . 259 . . . 98 186 . . Shots 17 | . . . . 1 . 7 . 3 . . . 1 5 . . Rammed 36 | . . . . . . 4 1 1 2 . . 4 24 . . Targets Rammed 52 | . 2 1 . 10 . 5 1 3 2 . . 4 24 . . Kicked 13 | . 2 1 . 10 . . . . . . . . . . . Crushed 3 | . . . . . . 1 . 2 . . . . . . . Highest Temperature 451 | . 6 15 . . 198 272 199 232 263 102 54 18 451 . . Average Temperature 91 | . 6 9 . . 95 81 94 97 72 46 33 8 121 . . Received Heat Transfer 2878 | . 66 114 . . 99 477 50 206 370 . . 58 1438 . . Effects 4 | . . . . . . . . . . . . . 4 . . Shutdowns 3 | . . . . . . . . . . . . . 3 . . Short Circuit 1 | . . . . . . . . . . . . . 1 . . Siege Activations 9 | . . . . . . . . . . . . . 9 . . Total Turns 296 | . . . . . . . . . . . . . 296 . . Longest Duration 77 | . . . . . . . . . . . . . 77 . . Martial Activations . | . . . . . . . . . . . . . . . . Shielding Activations . | . . . . . . . . . . . . . . . . Robots Disrupted 1 | . . . . . . . . . . . . . 1 . . Combat Hostiles 1 | . . . . . . . . . . . . . 1 . . Robots Corrupted 6 | . . . . . . 1 . . 4 . . 1 . . . Combat Hostiles 4 | . . . . . . . . . 4 . . . . . . Parts Fried 14 | . . . . . . 3 . . 8 . . 3 . . . Impact Corruptions 1 | . . . . . . . . . . . . 1 . . . Robots Melted 12 | . . . . . 1 . . . . . . 1 10 . . Combat Hostiles 10 | . . . . . 1 . . . . . . . 9 . . Parts Melted 40 | . . . . . 1 1 1 2 . . . 1 34 . . Heat Transferred 15975 | . . 222 . 74 1443 1693 584 1262 400 200 300 750 9047 . . Parts Sabotaged . | . . . . . . . . . . . . . . . . Parts Stolen . | . . . . . . . . . . . . . . . . Parts Stripped . | . . . . . . . . . . . . . . . . Power Chain Reactions 9 | . . . . . . 4 . . 4 . . . 1 . . Alert | -11 -10 -10 -10 -9 -8 -8 -8 -6 -6 -6 -6 -6 -5 -5 -5 ------- Run | Yrd Mat Min Exi Min Mat Sto Rec Fac Ext Cet Arc Hub Fac Was Fac Maximum Alert Level 4 | . . . . . . 1 . 2 2 1 . 4 4 2 1 Low Security (%) 71 | 100 100 100 . 100 100 62 100 73 68 54 100 18 . . . Level 1 11 | . . . . . . 37 . 21 18 45 . 9 . . 100 Level 2 8 | . . . . . . . . 4 12 . . 15 45 100 . Level 3 5 | . . . . . . . . . . . . 50 31 . . Level 4 2 | . . . . . . . . . . . . 6 22 . . Level 5 . | . . . . . . . . . . . . . . . . High Security . | . . . . . . . . . . . . . . . . Max Security . | . . . . . . . . . . . . . . . . Peak Influence 1493 | 5 107 79 . 82 133 297 131 422 553 295 150 1451 1493 527 340 Initial 710 | . . 3 . . 27 24 99 417 12 213 28 37 710 527 340 Average 199 | . 35 9 . 10 74 146 64 123 179 184 115 668 829 509 340 Influence Increases 8110 | 5 254 130 . 238 364 840 428 729 1333 359 208 1554 1668 . . Destroy 0b10 Robot/C 3660 | . 180 80 . 140 240 480 220 140 660 160 80 460 820 . . Destroy 0b10 Robot/NC 340 | 5 15 15 . 5 15 70 10 25 30 10 20 55 65 . . Destroy Leader 688 | . 32 20 . 20 64 156 . 40 64 . . 118 174 . . Allied During Kill 1208 | . . . . 8 6 . 13 1 456 166 88 470 . . . Successful Hack 152 | . 27 . . . 8 19 . 10 22 . . . 66 . . Select Force Hacks 180 | . . . . . . . 180 . . . . . . . . Disable Machine 435 | . . 15 . . 30 45 . 60 . . 15 210 60 . . Destroy Structure 687 | . . . . 35 1 40 5 53 71 23 5 226 228 . . Advance Influence 400 | . . . . . . . . 400 . . . . . . . Lose Combat Pursuer 360 | . . . . 30 . 30 . . 30 . . 15 255 . . Influence Decreases 7770 | 5 246 117 21 168 376 643 641 744 978 671 172 209 1611 1021 147 Entered New Map 2448 | . . 5 21 . 43 34 156 25 15 169 42 69 741 981 147 Time Decay 3860 | 5 246 109 . 158 286 461 465 505 563 262 90 140 550 20 . Lost Part 483 | . . 3 . 10 . 13 . 77 40 . . . 320 20 . Lost Ally 687 | . . . . . 47 . 20 130 210 240 40 . . . . Purge Threat 292 | . . . . . . 135 . 7 150 . . . . . . Squads Dispatched 32 | . 2 . . . . 3 . 3 4 . . 5 15 . . Investigation 6 | . 1 . . . . . . . 2 . . 2 1 . . Extermination 6 | . . . . . . . . 3 . . . 1 2 . . Reinforcement 11 | . 1 . . . . 3 . . 2 . . 2 3 . . Assault 6 | . . . . . . . . . . . . . 6 . . Garrison 3 | . . . . . . . . . . . . . 3 . . Intercept . | . . . . . . . . . . . . . . . . Searches Triggered . | . . . . . . . . . . . . . . . . Construction Impeded 8 | . . . . . . 2 . . 2 . . 2 2 . . Haulers Reinforced . | . . . . . . . . . . . . . . . . Active Scanning Responses . | . . . . . . . . . . . . . . . . Cargo Convoy Interrupts 1 | . . . . . . . . . . . . . 1 . . Stealth | -11 -10 -10 -10 -9 -8 -8 -8 -6 -6 -6 -6 -6 -5 -5 -5 --------- Run | Yrd Mat Min Exi Min Mat Sto Rec Fac Ext Cet Arc Hub Fac Was Fac Distress Signals 20 | . 2 . . . 1 2 1 . 3 2 . 6 3 . . Communications Jammed . | . . . . . . . . . . . . . . . . Distress Signals . | . . . . . . . . . . . . . . . . Times Spotted 251 | . 16 5 . 7 15 35 8 12 35 9 3 24 77 5 . Peak Tracking Total 13 | . 7 2 . 4 5 6 2 3 8 5 1 6 13 5 . Tactical Retreats 13 | . . . . 1 . 2 . . 2 . . 1 7 . . Traps | -11 -10 -10 -10 -9 -8 -8 -8 -6 -6 -6 -6 -6 -5 -5 -5 ------- Run | Yrd Mat Min Exi Min Mat Sto Rec Fac Ext Cet Arc Hub Fac Was Fac Traps Triggered 14 | . 2 . . . 4 4 . . . . . 2 2 . . Indirectly 2 | . . . . . . . . . . . . 2 . . . Trap Hack Attempts . | . . . . . . . . . . . . . . . . Triggered . | . . . . . . . . . . . . . . . . Disarmed . | . . . . . . . . . . . . . . . . Reprogrammed . | . . . . . . . . . . . . . . . . Reused . | . . . . . . . . . . . . . . . . Traps Extracted . | . . . . . . . . . . . . . . . . Installed . | . . . . . . . . . . . . . . . . Triggered . | . . . . . . . . . . . . . . . . Machines | -11 -10 -10 -10 -9 -8 -8 -8 -6 -6 -6 -6 -6 -5 -5 -5 ---------- Run | Yrd Mat Min Exi Min Mat Sto Rec Fac Ext Cet Arc Hub Fac Was Fac Machines Disabled 31 | . . 1 . . 2 3 . 4 2 . 1 14 4 . . Max in Single Turn 10 | . . 1 . . 1 1 . 3 1 . . 10 1 . . Garrison Access 1 | . . . . . . 1 . . . . . . . . . Network Hub 1 | . . . . . . . . . . . . 1 . . . Machines Repaired . | . . . . . . . . . . . . . . . . Machines Dismantled . | . . . . . . . . . . . . . . . . Machines Sabotaged . | . . . . . . . . . . . . . . . . Overloaded Fab Kills . | . . . . . . . . . . . . . . . . Hacking | -11 -10 -10 -10 -9 -8 -8 -8 -6 -6 -6 -6 -6 -5 -5 -5 --------- Run | Yrd Mat Min Exi Min Mat Sto Rec Fac Ext Cet Arc Hub Fac Was Fac Machines Accessed 54 | . 6 . 1 . 2 9 10 4 12 . . 2 8 . . Terminals 36 | . 6 . . . 2 7 4 3 11 . . 2 1 . . Fabricators 4 | . . . . . . . . . . . . . 4 . . Repair Stations 3 | . . . . . . 1 . . 1 . . . 1 . . Recycling Units 6 | . . . . . . . 6 . . . . . . . . Scanalyzers 1 | . . . . . . . . . . . . . 1 . . Garrison Access 3 | . . . . . . 1 . 1 . . . . 1 . . Total Hacks 140 | . 19 . 1 . 5 29 21 6 27 . . 4 28 . . Successful 56 | . 3 . 1 . 1 15 7 3 15 . . 1 10 . . Failed 84 | . 16 . . . 4 14 14 3 12 . . 3 18 . . Catastrophic 23 | . 6 . . . 1 2 2 1 2 . . 3 6 . . Database Lockouts . | . . . . . . . . . . . . . . . . Manual 65 | . 18 . . . 4 14 15 3 4 1 . 2 4 . . Terminals 102 | . 19 . . . 5 22 14 5 23 . . 4 10 . . Fabricators 10 | . . . . . . . . . . . . . 10 . . Repair Stations 15 | . . . . . . 6 . . 4 . . . 5 . . Recycling Units 7 | . . . . . . . 7 . . . . . . . . Scanalyzers 2 | . . . . . . . . . . . . . 2 . . Garrison Access 3 | . . . . . . 1 . 1 . . . . 1 . . Terminal Hacks 26 | . 2 . 1 . 1 5 1 3 10 . . 1 2 . . Record 1 | . . . 1 . . . . . . . . . . . . Part Schematic 1 | . 1 . . . . . . . . . . . . . . Robot Analysis 1 | . 1 . . . . . . . . . . . . . . Prototype ID Bank 2 | . . . . . . . . . 1 . . . 1 . . Open Door 10 | . . . . . . 2 . 1 7 . . . . . . Branch Access Points 2 | . . . . . 1 . . 1 . . . . . . . Alert Level 3 | . . . . . . . 1 . 1 . . 1 . . . Unreport Threat 3 | . . . . . . 1 . 1 1 . . . . . . Locate Traps 2 | . . . . . . 1 . . . . . . 1 . . Zone Layout 1 | . . . . . . 1 . . . . . . . . . Fabricator Hacks 3 | . . . . . . . . . . . . . 3 . . Network Status 2 | . . . . . . . . . . . . . 2 . . Build 1 | . . . . . . . . . . . . . 1 . . Repair Station Hacks 13 | . . . . . . 6 . . 4 . . . 3 . . Scan Component 7 | . . . . . . 3 . . 2 . . . 2 . . Repair 6 | . . . . . . 3 . . 2 . . . 1 . . Recycling Unit Hacks . | . . . . . . . . . . . . . . . . Scanalyzer 1 | . . . . . . . . . . . . . 1 . . Insert Component 1 | . . . . . . . . . . . . . 1 . . Garrison Access Hacks 1 | . . . . . . 1 . . . . . . . . . Seal Access 1 | . . . . . . 1 . . . . . . . . . Unauthorized Hacks 12 | . 1 . . . . 3 6 . 1 . . . 1 . . Terminals 6 | . 1 . . . . 3 . . 1 . . . 1 . . Assimilate 1 | . . . . . . . . . 1 . . . . . . Botnet 4 | . 1 . . . . 2 . . . . . . 1 . . Operators 1 | . . . . . . 1 . . . . . . . . . Fabricators . | . . . . . . . . . . . . . . . . Repair Stations . | . . . . . . . . . . . . . . . . Recycling Units 6 | . . . . . . . 6 . . . . . . . . Tunnel 6 | . . . . . . . 6 . . . . . . . . Scanalyzers . | . . . . . . . . . . . . . . . . Garrison Access . | . . . . . . . . . . . . . . . . Data Cores Recovered . | . . . . . . . . . . . . . . . . Used . | . . . . . . . . . . . . . . . . Hacking Detections 41 | . 6 . . . 2 7 4 3 9 1 . 2 7 . . Full Trace Events 6 | . 1 . . . . . 2 . 2 . . 1 . . . Feedback Events . | . . . . . . . . . . . . . . . . Feedback Blocked . | . . . . . . . . . . . . . . . . Robot Schematics Acquired . | . . . . . . . . . . . . . . . . Robots Built . | . . . . . . . . . . . . . . . . Authchips . | . . . . . . . . . . . . . . . . Time . | . . . . . . . . . . . . . . . . Total Robot Build Rating . | . . . . . . . . . . . . . . . . Part Schematics Acquired 1 | . 1 . . . . . . . . . . . . . . Parts Built 2 | . . . . . . . . . . . . . 2 . . Authchips . | . . . . . . . . . . . . . . . . Time 35 | . . . . . . . . . . . . . 35 . . Total Part Build Rating 12 | . . . . . . . . . . . . . 12 . . Parts Repaired 6 | . . . . . . 3 . . 2 . . . 1 . . Time 284 | . . . . . . 78 . . 70 . . . 136 . . Parts Recycled . | . . . . . . . . . . . . . . . . Recycled Matter . | . . . . . . . . . . . . . . . . Retrieved Matter . | . . . . . . . . . . . . . . . . Retrieved Components . | . . . . . . . . . . . . . . . . Parts Scanalyzed 1 | . . . . . . . . . . . . . 1 . . Part Schematics Acquired . | . . . . . . . . . . . . . . . . Parts Damaged . | . . . . . . . . . . . . . . . . Bothacking | -11 -10 -10 -10 -9 -8 -8 -8 -6 -6 -6 -6 -6 -5 -5 -5 ------------ Run | Yrd Mat Min Exi Min Mat Sto Rec Fac Ext Cet Arc Hub Fac Was Fac Used RIF Installer . | . . . . . . . . . . . . . . . . Robots Hacked . | . . . . . . . . . . . . . . . . Non-combat . | . . . . . . . . . . . . . . . . Combat . | . . . . . . . . . . . . . . . . Robot Hacks Applied . | . . . . . . . . . . . . . . . . Relay Couplers Released 2 | . . . . . . 2 . . . . . . . . . Machine Destruction 2 | . . . . . . 2 . . . . . . . . . Fabnet Peak Effective % . | . . . . . . . . . . . . . . . . Robots Rewired 30 | . . . . . . . 10 . 20 . . . . . . Allies Hacked . | . . . . . . . . . . . . . . . . Hacks Repelled . | . . . . . . . . . . . . . . . . Allies | -11 -10 -10 -10 -9 -8 -8 -8 -6 -6 -6 -6 -6 -5 -5 -5 -------- Run | Yrd Mat Min Exi Min Mat Sto Rec Fac Ext Cet Arc Hub Fac Was Fac Total Allies 50 | . . . . 3 . . 10 . 32 5 . . . . . Largest Group 20 | . . . . 3 3 . 8 8 20 17 7 5 1 . . Highest-Rated Group 775 | . . . . 40 40 . 154 154 725 775 491 366 96 . . Highest-Rated Ally 159 | . . . . 16 16 . 27 27 159 135 96 96 96 . . Total Orders . | . . . . . . . . . . . . . . . . Ally Attacks 427 | . . . . 5 13 . 20 13 189 72 13 102 . . . Total Damage 9063 | . . . . 50 135 . 472 285 3108 1483 239 3291 . . . Kills 63 | . . . . 2 1 . 6 . 19 11 3 21 . . . Allies Corrupted . | . . . . . . . . . . . . . . . . Allies Melted 1 | . . . . . . . . . . . 1 . . . . Intel | -11 -10 -10 -10 -9 -8 -8 -8 -6 -6 -6 -6 -6 -5 -5 -5 ------- Run | Yrd Mat Min Exi Min Mat Sto Rec Fac Ext Cet Arc Hub Fac Was Fac Active Infowar (turns) 5968 | 21 715 18 . . . . . 1640 1725 563 194 102 990 . . Optics 269 | . . . . . . . . . . . . . 269 . . Sensors 4945 | . . . . . . . . 1640 1725 563 194 102 721 . . Seismic 754 | 21 715 18 . . . . . . . . . . . . . Robot Analysis Total 1 | . 1 . . . . . . . . . . . . . . Derelict Logs Recovered 3 | . . 1 . 2 . . . . . . . . . . . Drone Launches . | . . . . . . . . . . . . . . . . Drone Recoveries . | . . . . . . . . . . . . . . . . Exploration | -11 -10 -10 -10 -9 -8 -8 -8 -6 -6 -6 -6 -6 -5 -5 -5 ------------- Run | Yrd Mat Min Exi Min Mat Sto Rec Fac Ext Cet Arc Hub Fac Was Fac Turns Passed 13158 | 68 715 1330 278 1446 626 1311 1306 1640 1730 563 194 299 1587 55 10 Spaces Moved 5691 | 42 330 482 147 627 307 550 693 658 745 220 74 143 566 88 19 Core 170 | 8 . . . . . . . . . . . . 55 88 19 Treads 3670 | . . . . . 76 550 693 658 745 220 74 143 511 . . Legs 1851 | 34 330 482 147 627 231 . . . . . . . . . . Wheels . | . . . . . . . . . . . . . . . . Hover . | . . . . . . . . . . . . . . . . Flight . | . . . . . . . . . . . . . . . . Fastest Speed 50 | 50 120 190 190 190 120 160 160 162 162 160 160 160 50 50 50 Average Speed 170 | 107 178 190 190 216 133 160 160 197 164 161 160 160 149 54 50 Slowest Speed 260 | 120 190 190 190 260 260 240 162 243 165 166 160 160 160 250 50 Overloaded Moves . | . . . . . . . . . . . . . . . . Propulsion Burnouts . | . . . . . . . . . . . . . . . . Robots Hopped . | . . . . . . . . . . . . . . . . Potential Cave-ins 6 | . . . . . . . . 6 . . . . . . . Cave-ins Triggered . | . . . . . . . . . . . . . . . . Exploration Rate (%) 56 | 4 69 98 53 98 35 92 95 23 86 57 68 28 19 82 1 Regions Visited 15 Branch Regions 9 Pre-discovered Areas 8 | . . . 1 1 . . 6 . . . . . . . . Known Exits Taken 6 | . . . . . 1 . . 1 1 1 1 1 . . . Unknown Exits Taken 7 | 1 1 1 1 1 . 1 1 . . . . . . . . Scrap Searched 4 | . . 2 . 2 . . . . . . . . . . . Spaces Dug 153 | . . . . 22 . 3 . 99 9 . . . 20 . . Terrain Destroyed 704 | . . . . 45 . 40 5 157 55 . . 235 167 . . Melee . | . . . . . . . . . . . . . . . . Projectile 53 | . . . . . . 9 5 . 1 . . 2 36 . . AOE 651 | . . . . 45 . 31 . 157 54 . . 233 131 . . Terrain Rammed . | . . . . . . . . . . . . . . . . Walls Destroyed . | . . . . . . . . . . . . . . . . Machines Disabled . | . . . . . . . . . . . . . . . . Actions | -11 -10 -10 -10 -9 -8 -8 -8 -6 -6 -6 -6 -6 -5 -5 -5 --------- Run | Yrd Mat Min Exi Min Mat Sto Rec Fac Ext Cet Arc Hub Fac Was Fac Total 8285 | 56 398 850 146 687 444 845 861 934 1160 412 137 177 1064 95 19 Wait 1404 | . 20 330 . 29 18 150 6 214 211 142 41 5 238 . . Move 5678 | 41 329 481 146 626 306 549 692 657 744 219 73 143 566 87 19 Hop . | . . . . . . . . . . . . . . . . Pick Up 100 | 3 11 5 . 3 18 9 3 6 19 6 4 . 10 3 . Fast Attach 73 | 8 . . . . 17 18 . 2 3 8 2 1 14 . . Attach 60 | . . 2 . 1 5 5 . 10 10 1 1 . 22 3 . Detach 7 | 1 . . . . 1 . . 2 . 2 . . 1 . . Swap 76 | . 2 2 . 3 9 16 12 1 6 1 2 5 17 . . Drop 113 | . 2 4 . 2 26 24 5 3 7 17 6 1 14 2 . Fire 469 | 3 32 25 . 13 44 69 13 36 52 5 3 19 155 . . Melee 16 | . . . . . . . . . . 11 5 . . . . Ram 17 | . . . . . . . . . . . . . 17 . . Kick 13 | . 2 1 . 10 . . . . . . . . . . . Crush 22 | . . . . . . 5 1 3 2 . . 3 8 . . Escape Stasis . | . . . . . . . . . . . . . . . . Rewire 237 | . . . . . . . 129 . 106 . . . 2 . . Trap . | . . . . . . . . . . . . . . . . Miscellaneous . | . . . . . . . . . . . . . . . . Route ------- -11/Scrapyard -10/Materials (discovered 3 exits: [*Mat x2] / [*Min]) -10/Mines (discovered 3 exits: [*Mat x2] / *Exi) -10/Exiles -9/Mines (discovered 2 exits: *Mat x2) -8/Materials (discovered 3 exits: [*Fac] / *Sto x2) -8/Storage (discovered 2 exits: [*Fac] / *Rec) -8/Recycling -6/Factory (discovered 5 exits: *Fac / Low x2 / *Ext x2) -6/Extension (discovered 2 exits: *Fac / *Cet) -6/Cetus (discovered 2 exits: *Fac / *Arc) -6/Archives -6/Hub_04(d) -5/Factory -5/Waste -5/Factory History --------- Turn | Location | Event 4 | -11/Scrapyard | Discovered new exit (range 15) 69 | -11/Scrapyard | Entered Materials 314 | -10/Materials | Build established: Mutant 316 | -10/Materials | Discovered new exit (range 8) 516 | -10/Materials | Discovered new exit (range 12) 687 | -10/Materials | Discovered new exit (range 16) 784 | -10/Materials | Entered Mines 785 | -10/Mines | Assembled infested the area 1234 | -10/Mines | Discovered new exit (range 14) 1501 | -10/Mines | Learned Materials stockpile data 1655 | -10/Mines | Discovered new exit (range 11) 1862 | -10/Mines | Core integrity fell below 50% 2105 | -10/Mines | Discovered new exit (range 5) 2114 | -10/Mines | Entered Exiles 2160 | -10/Exiles | Met 8R-AWN 2194 | -10/Exiles | Met EX-HEX 2276 | -10/Exiles | Met EX-DEC 2306 | -10/Exiles | Learned location of Zion (-6) 2373 | -10/Exiles | Discovered new exit (range 12) 2392 | -10/Exiles | Entered Mines 2764 | -9/Mines | A weapon hastily lodged in a ceiling crevice suddenly fell to the ground 2890 | -9/Mines | Discovered new exit (range 5) 3099 | -9/Mines | Found a hidden stash of uninstalled traps 3232 | -9/Mines | Discovered new exit (range 16) 3737 | -9/Mines | Assisted by bots powering up and referring to "LRC-V3" 3838 | -9/Mines | Entered Materials 3838 | -8/Materials | Accompanied by 3 allies 3838 | -8/Materials | Evolved 4 slots: Propulsion x2, Utility x2 3839 | -8/Materials | Identified exit to Storage 3929 | -8/Materials | Lost 3 allies 4356 | -8/Materials | Discovered new exit (range 4) 4464 | -8/Materials | Entered Storage 4594 | -8/Storage | Repaired Lgt. Treads 4622 | -8/Storage | Repaired Lgt. Treads 4649 | -8/Storage | Repaired Lgt. Treads 5576 | -8/Storage | Discovered new exit (range 5) 5771 | -8/Storage | Used back door to open Recycling access 5771 | -8/Storage | Discovered new exit (range 3) 5775 | -8/Storage | Entered Recycling 6717 | -8/Recycling | Discovered new exit (range 15) 6760 | -8/Recycling | P-60 Hacker assimilated allied Bruiser 3a 7081 | -8/Recycling | Entered Factory 7081 | -6/Factory | Accompanied by 8 allies 7081 | -6/Factory | Evolved 4 slots: Power x1, Utility x3 7301 | -6/Factory | Build established: Commander-Mutant 7560 | -6/Factory | Lost 5 allies 7657 | -6/Factory | Discovered new exit (range 3) 7662 | -6/Factory | Identified exit to Factory 7841 | -6/Factory | Build established: Mutant 7845 | -6/Factory | Lost 3 allies 8351 | -6/Factory | Identified exit to Lower Caves 8351 | -6/Factory | Identified exit to Extension 8721 | -6/Factory | Entered Extension 8750 | -6/Extension | Lost 6 parts (2p3n1u) 9151 | -6/Extension | Repaired Lgt. Treads 9197 | -6/Extension | Repaired Coolant Injector 9247 | -6/Extension | Rescued a captive Derelict 9248 | -6/Extension | Rescued a captive Derelict 9284 | -6/Extension | Rescued a captive Derelict 9285 | -6/Extension | Rescued a captive Derelict 9293 | -6/Extension | Rescued a captive Derelict 9295 | -6/Extension | Rescued a captive Derelict 9482 | -6/Extension | Rescued a captive Derelict 9483 | -6/Extension | Rescued a captive Derelict 9547 | -6/Extension | Rescued a captive Derelict 9723 | -6/Extension | Build established: Commander-Mutant 9841 | -6/Extension | Spotted B-75 Beast 9855 | -6/Extension | Allies destroyed B-75 Beast 9858 | -6/Extension | Spotted B-75 Beast 9868 | -6/Extension | Allies destroyed B-75 Beast 9891 | -6/Extension | Lost 4 allies 9896 | -6/Extension | Disrupted transfer network 9977 | -6/Extension | Rescued A7 9992 | -6/Extension | Rescued a captive Derelict 10161 | -6/Extension | Lost 3 allies 10397 | -6/Extension | Discovered exit to Factory (range 10) 10399 | -6/Extension | Discovered new exit (range 6) 10418 | -6/Extension | Identified exit to Cetus 10451 | -6/Extension | Entered Cetus 10451 | -6/Cetus | Accompanied by 17 allies (A7) 10456 | -6/Cetus | Acquired a Cetus Manufacturing Module code from A7 10483 | -6/Cetus | Spotted Cetus Guard 10483 | -6/Cetus | Spotted Cetus Guard 10484 | -6/Cetus | Spotted Cetus Guard 10486 | -6/Cetus | Allies destroyed Cetus Guard 10486 | -6/Cetus | Allies destroyed Cetus Guard 10487 | -6/Cetus | Spotted Cetus Guard 10488 | -6/Cetus | Allies destroyed Cetus Guard 10496 | -6/Cetus | Allies destroyed Cetus Guard 10520 | -6/Cetus | Lost 4 allies 10699 | -6/Cetus | Started Cetus Manufacturing Module 10718 | -6/Cetus | Discovered new exit (range 16) 10724 | -6/Cetus | Manufactured an Enhanced Grunt 10749 | -6/Cetus | Manufactured an Enhanced Grunt 10773 | -6/Cetus | Spotted Cetus Guard 10774 | -6/Cetus | Manufactured an Enhanced Grunt 10786 | -6/Cetus | Allies destroyed Cetus Guard 10789 | -6/Cetus | Spotted Cetus Guard 10790 | -6/Cetus | Spotted Cetus Guard 10796 | -6/Cetus | Allies destroyed Cetus Guard 10797 | -6/Cetus | Allies destroyed Cetus Guard 10799 | -6/Cetus | Manufactured an Enhanced Grunt 10824 | -6/Cetus | Manufactured an Enhanced Grunt 10827 | -6/Cetus | Lost 9 allies 10837 | -6/Cetus | Discovered exit to Factory (range 16) 10845 | -6/Cetus | Met Revision 17 10951 | -6/Cetus | Murdered A7 10955 | -6/Cetus | Extracted ID and sensor layout for unrecognized location from A7's data core 10978 | -6/Cetus | Found Prototype Protection 10978 | -6/Cetus | Identified Med. Regenerative Plating 11001 | -6/Cetus | Identified exit to Archives 11014 | -6/Cetus | Entered Archives 11014 | -6/Archives | Accompanied by 7 allies 11174 | -6/Archives | Discovered new exit (range 13) 11192 | -6/Archives | Identified exit to Hub_04(d) 11208 | -6/Archives | Entered Hub_04(d) 11208 | -6/Hub_04(d) | Accompanied by 5 allies 11331 | -6/Hub_04(d) | Build established: Scavenger-Mutant 11458 | -6/Hub_04(d) | Discovered exit to Factory (range 6) 11504 | -6/Hub_04(d) | Network Hub disabled 11507 | -6/Hub_04(d) | Entered Factory 11507 | -5/Factory | Accompanied by 2 allies 11507 | -5/Factory | Evolved 2 slots: Utility x2 11542 | -5/Factory | Murdered 3 allies 11807 | -5/Factory | First assault squad dispatched 11841 | -5/Factory | Fabricated Imp. Plasma Cutter? 12151 | -5/Factory | Repaired Broken Centrium Heavy Treads 12647 | -5/Factory | System corruption reached 10% 12730 | -5/Factory | Cargo convoy interrupted 12768 | -5/Factory | Destroyed 11 combat bots 12788 | -5/Factory | Found Prototype Processor 12788 | -5/Factory | Identified Spectral Analyzer 12798 | -5/Factory | Garrison activated, responded to threat 12917 | -5/Factory | Garrison activated, responded to threat 12949 | -5/Factory | System corruption reached 30% 13019 | -5/Factory | Core integrity fell below 50% 13094 | -5/Factory | Manually triggered Chute Trap 13094 | -5/Factory | Sucked down chute 13094 | -5/Factory | Entered Waste 13097 | -5/Waste | Lost 26 parts (3p3n13u7w) 13101 | -5/Waste | Spotted C-40 Crusher 13103 | -5/Waste | Spotted C-40 Crusher 13108 | -5/Waste | Crushed by Compactor (1 part destroyed, 2 dropped) 13109 | -5/Waste | EMP discharged 13109 | -5/Waste | Core integrity fell below 20% 13120 | -5/Waste | Spotted C-40 Crusher 13128 | -5/Waste | Spotted C-40 Crusher 13134 | -5/Waste | Discovered new exit (range 13) 13134 | -5/Waste | Spotted C-40 Crusher 13141 | -5/Waste | Spotted C-40 Crusher 13144 | -5/Waste | Crushed by Compactor (1 part destroyed, 1 dropped) 13149 | -5/Waste | Entered Factory 13159 | -5/Factory | Self-destructed Last Messages --------------- LOCATION=UNKNOWN GOAL=ESCAPE 13099_ ALERT: Foreign system detected. Charging EMP. 13105_ System corrupted: Matter fused (-10). 13108_ Imp. Hacking Suite crushed. 13108_ Broken Armor Integrity Analyzer crushed. 13109_ System corrupted (+6). 13117_ Dropped Broken Phase Cannon. 13117_ Acquired Broken Com. HERF Cannon. 13121_ System corrupted: Component data lost. 13122_ Dropped Imp. Remote Datajack. 13123_ Acquired Broken Adv. Heavy Siege Treads. 13134_ EXIT=FOUND 13139_ Acquired Broken Adv. Heavy Treads. 13142_ System corrupted: Energy discharge (-21). 13144_ Med. Regenerative Plating crushed. 13144_ Matter Compressor crushed. LOCATION=UNKNOWN GOAL=ESCAPE 13158_ System corrupted: Energy discharge (-25). Map ----- +----------------------------------------------------+ | ?????????????????????????????????????????? | | ?????????????????????????????????????????? | | ?????????????????????????????????????????? | | ?????????????????????????????????????????? | | ?????????????????????????????????????????? | | ?????????????????????????????????????????? | | ?????????????????????????????????????????? | | ?????????????????????????????????????????? | | ?????????????????????????????????????????? | | ?????????????????????????????????????????? | | ?????##############??????????????????????? | | ?????# #??????????????????????? | | ?????# #??????????????????????? | | ?????# #??????????????????????? | | ?????# #??????????????????????? | | ?????# #######????????????????? | | ?????# # #????????????????? | | ?????# # ##########???????? | | ?????# # ????? | | ?????# + ????? | | ?????# # ????? | | ?????# # ?????? | | ?????# + ?????? | | ?????################+#############??????? | | ??????????????# "T" #????????????? | | ??????????????# @ """ """ #????????????? | | ??????????????# """ """ #????????????? | | ??????????????# """ """ #????????????? | | ??????????????# #????????????? | | ??????????????# """ """ """ #????????????? | | ??????????????# """ """ """ #????????????? | | ??????????????# """ """ """ #????????????? | | ??????????????# ???????????????? | | ??????????????# ????????????????? | | ??????????????#? ? ????????????????? | | ??????????????????####???????????????????? | | | | | | | | | | | | | | | | | | | | | | | | | | | | | +----------------------------------------------------+ Best States ------------- Heat Dissipation 97 Coolant Potential 65 Energy Generation 39 Energy Capacity 1170 Matter Stores 510 Matter Capacity 550 Sight Range 24 Robot Scan Range 16 Terrain Scan Density 210 Armor Coverage 1350 Weapon Cycling 20 Evasion (%) 55 Targeting Accuracy 8 Armor Integrity Analysis 30 Recoil Reduction 4 Offensive Hacking 48 Item Schematics ----------------- Huge Storage Unit | -10/Materials | Hacked Robot Schematics ------------------ None Fabricated ------------ Imp. Plasma Cutter | x2 | -5/Factory | Preloaded Repaired ---------- Lgt. Treads | 36% | -8/Storage Lgt. Treads | 50% | -8/Storage Lgt. Treads | 64% | -8/Storage Lgt. Treads | 6% | -6/Extension Coolant Injector | 34% | -6/Extension Centrium Heavy Treads | 64% | -5/Factory | Broken Alien Tech Used ----------------- None Achievements -------------- None Challenges ------------ None Game ------ Seed MolecularDefenseTendrils Manual? 0 Play Time 01:30:17 Cumulative 270.7 hours Start 2025.05.16 @ 14:06:21 End 2025.05.16 @ 15:38:11 Sessions 1 Manual Loads 0 Difficulty Rogue Special Mode None Game No. 183 Rogue 183 Adventurer 0 Explorer 0 Win Type - Total 15 Types 6/0/5/1/1/0/0/1/0/1 Lore% 78 Gallery% 72 Achievement% 74 Wizard Run 0 Options --------- Layout 0 ASCII 0 Keyboard 0 Movement Mouse Keybinds 0 Fullscreen 2 Font 24/Smallcaps Map View 76x50 Zoom Use 0% Tactical HUD 1 Map Filters NONE Filters NONE Steam 1 RUN: 8cbe3c3f-626c-4ffb-9ed1-153832c93ad0